Workbook

Sheet Factor Data (hidden)
A1: Entry Count | B1: 3
A2: Next Available ID | B2: 4
A4: ID | B4: 1
A5: IsActive | B5: FALSE
A6: NodeID | B6: 1 | C6: 2 | D6: 3
A7: ArcID | B7: 1 | C7: 2 | D7: 3
A8: fNodeCopyID
A9: RootNodeID | B9: 1
A10: FactorName | B10: Progression
A11: IsHidden | B11: FALSE
A13: ID | B13: 2
A14: IsActive | B14: TRUE
A15: NodeID | B15: 4 | C15: 5 | D15: 6
A16: ArcID | B16: 4 | C16: 5
A17: fNodeCopyID
A18: RootNodeID | B18: 4
A19: FactorName | B19: Treatment
A20: IsHidden | B20: FALSE
A22: ID | B22: 3
A23: IsActive | B23: TRUE
A24: NodeID | B24: 7 | C24: 8 | D24: 9
A25: ArcID | B25: 6 | C25: 7 | D25: 8 | E25: 9 | F25: 10 | G25: 11
A26: fNodeCopyID
A27: RootNodeID | B27: 7
A28: FactorName | B28: ProgrNaive
A29: IsHidden | B29: FALSE

Sheet Node Data (hidden)
A1: Entry Count | B1: 9
A2: Next Available ID | B2: 10
A4: ID | B4: 1
A5: nParentFactorID | B5: 1
A6: NodeCopyID
A7: PredecessorArcID
A8: SuccessorArcID | B8: 1
A9: QualityFactor | B9: 1
A10: CostFactor | B10: ID 4
A11: IsKeyNode | B11: FALSE
A12: NodeName | B12: A
A13: Rounded | B13: TRUE
A14: nTriggerID
A16: ID | B16: 2
A17: nParentFactorID | B17: 1
A18: NodeCopyID
A19: PredecessorArcID | B19: 1
A20: SuccessorArcID | B20: 2
A21: QualityFactor | B21: 1
A22: CostFactor | B22: ID 5
A23: IsKeyNode | B23: FALSE
A24: NodeName | B24: B
A25: Rounded | B25: TRUE
A26: nTriggerID
A28: ID | B28: 3
A29: nParentFactorID | B29: 1
A30: NodeCopyID
A31: PredecessorArcID | B31: 2
A32: SuccessorArcID | B32: 3
A33: QualityFactor | B33: 1
A34: CostFactor | B34: ID 6
A35: IsKeyNode | B35: FALSE
A36: NodeName | B36: C
A37: Rounded | B37: TRUE
A38: nTriggerID
A40: ID | B40: 4
A41: nParentFactorID | B41: 2
A42: NodeCopyID
A43: PredecessorArcID
A44: SuccessorArcID | B44: 4 | C44: 5
A45: QualityFactor | B45: 1
A46: CostFactor | B46: 0
A47: IsKeyNode | B47: FALSE
A48: NodeName
A49: Rounded | B49: FALSE
A50: nTriggerID
A52: ID | B52: 5
A53: nParentFactorID | B53: 2
A54: NodeCopyID
A55: PredecessorArcID | B55: 4
A56: SuccessorArcID
A57: QualityFactor | B57: 1
A58: CostFactor | B58: 0
A59: IsKeyNode | B59: FALSE
A60: NodeName | B60: Monotherapy
A61: Rounded | B61: TRUE
A62: nTriggerID
A64: ID | B64: 6
A65: nParentFactorID | B65: 2
A66: NodeCopyID
A67: PredecessorArcID | B67: 5
A68: SuccessorArcID
A69: QualityFactor | B69: 1
A70: CostFactor | B70: 0
A71: IsKeyNode | B71: FALSE
A72: NodeName | B72: Combination Therapy
A73: Rounded | B73: TRUE
A74: nTriggerID
A76: ID | B76: 7
A77: nParentFactorID | B77: 3
A78: NodeCopyID
A79: PredecessorArcID
A80: SuccessorArcID | B80: 6 | C80: 9 | D80: 11
A81: QualityFactor | B81: 1
A82: CostFactor | B82: ID 4
A83: IsKeyNode | B83: FALSE
A84: NodeName | B84: A
A85: Rounded | B85: TRUE
A86: nTriggerID
A88: ID | B88: 8
A89: nParentFactorID | B89: 3
A90: NodeCopyID
A91: PredecessorArcID | B91: 6
A92: SuccessorArcID | B92: 7 | C92: 10
A93: QualityFactor | B93: 1
A94: CostFactor | B94: ID 5
A95: IsKeyNode | B95: FALSE
A96: NodeName | B96: B
A97: Rounded | B97: TRUE
A98: nTriggerID
A100: ID | B100: 9
A101: nParentFactorID | B101: 3
A102: NodeCopyID
A103: PredecessorArcID | B103: 7 | C103: 11
A104: SuccessorArcID | B104: 8
A105: QualityFactor | B105: 1
A106: CostFactor | B106: ID 6
A107: IsKeyNode | B107: FALSE
A108: NodeName | B108: C
A109: Rounded | B109: TRUE
A110: nTriggerID

Sheet Arc Data (hidden)
A1: Entry Count | B1: 11
A2: Next Available ID | B2: 12
A4: ID | B4: 1
A5: aParentFactorID | B5: 1
A6: Stochastic | B6: TRUE
A7: Orientation | B7: 3.141592741
A8: PredecessorNodeID | B8: 1
A9: SuccessorNodeID | B9: 2
A10: SuccessorNodeCopyID | B10: 0
A11: TriggerID
A12: RateProb | B12: ID 1
A13: QualityToll | B13: 0
A14: CostToll | B14: 0
A16: ID | B16: 2
A17: aParentFactorID | B17: 1
A18: Stochastic | B18: TRUE
A19: Orientation | B19: 3.141592741
A20: PredecessorNodeID | B20: 2
A21: SuccessorNodeID | B21: 3
A22: SuccessorNodeCopyID | B22: 0
A23: TriggerID
A24: RateProb | B24: ID 2
A25: QualityToll | B25: 0
A26: CostToll | B26: 0
A28: ID | B28: 3
A29: aParentFactorID | B29: 1
A30: Stochastic | B30: TRUE
A31: Orientation | B31: 3.141592741
A32: PredecessorNodeID | B32: 3
A33: SuccessorNodeID | B33: 0
A34: SuccessorNodeCopyID | B34: 0
A35: TriggerID
A36: RateProb | B36: ID 3
A37: QualityToll | B37: 0
A38: CostToll | B38: 0
A40: ID | B40: 4
A41: aParentFactorID | B41: 2
A42: Stochastic | B42: FALSE
A43: Orientation | B43: 3.141592741
A44: PredecessorNodeID | B44: 4
A45: SuccessorNodeID | B45: 5
A46: SuccessorNodeCopyID | B46: 0
A47: TriggerID
A48: RateProb | B48: 1-Comb
A49: QualityToll | B49: 0
A50: CostToll | B50: 0
A52: ID | B52: 5
A53: aParentFactorID | B53: 2
A54: Stochastic | B54: FALSE
A55: Orientation | B55: 3.141592741
A56: PredecessorNodeID | B56: 4
A57: SuccessorNodeID | B57: 6
A58: SuccessorNodeCopyID | B58: 0
A59: TriggerID
A60: RateProb | B60: Comb
A61: QualityToll | B61: 0
A62: CostToll | B62: 0
A64: ID | B64: 6
A65: aParentFactorID | B65: 3
A66: Stochastic | B66: TRUE
A67: Orientation | B67: 3.141592741
A68: PredecessorNodeID | B68: 7
A69: SuccessorNodeID | B69: 8
A70: SuccessorNodeCopyID | B70: 0
A71: TriggerID
A72: RateProb | B72: ID 7
A73: QualityToll | B73: 0
A74: CostToll | B74: 0
A76: ID | B76: 7
A77: aParentFactorID | B77: 3
A78: Stochastic | B78: TRUE
A79: Orientation | B79: -1.570796371
A80: PredecessorNodeID | B80: 8
A81: SuccessorNodeID | B81: 9
A82: SuccessorNodeCopyID | B82: 0
A83: TriggerID
A84: RateProb | B84: ID 8
A85: QualityToll | B85: 0
A86: CostToll | B86: 0
A88: ID | B88: 8
A89: aParentFactorID | B89: 3
A90: Stochastic | B90: TRUE
A91: Orientation | B91: 3.141592741
A92: PredecessorNodeID | B92: 9
A93: SuccessorNodeID | B93: 0
A94: SuccessorNodeCopyID | B94: 0
A95: TriggerID
A96: RateProb | B96: qC D
A97: QualityToll | B97: 0
A98: CostToll | B98: 0
A100: ID | B100: 9
A101: aParentFactorID | B101: 3
A102: Stochastic | B102: TRUE
A103: Orientation | B103: 3.141592741
A104: PredecessorNodeID | B104: 7
A105: SuccessorNodeID | B105: 0
A106: SuccessorNodeCopyID | B106: 0
A107: TriggerID
A108: RateProb | B108: qA D
A109: QualityToll | B109: 0
A110: CostToll | B110: 0
A112: ID | B112: 10
A113: aParentFactorID | B113: 3
A114: Stochastic | B114: TRUE
A115: Orientation | B115: 3.141592741
A116: PredecessorNodeID | B116: 8
A117: SuccessorNodeID | B117: 0
A118: SuccessorNodeCopyID | B118: 0
A119: TriggerID
A120: RateProb | B120: qB D
A121: QualityToll | B121: 0
A122: CostToll | B122: 0
A124: ID | B124: 11
A125: aParentFactorID | B125: 3
A126: Stochastic | B126: TRUE
A127: Orientation | B127: 3.141592741
A128: PredecessorNodeID | B128: 7
A129: SuccessorNodeID | B129: 9
A130: SuccessorNodeCopyID | B130: 0
A131: TriggerID
A132: RateProb | B132: ID 9
A133: QualityToll | B133: 0
A134: CostToll | B134: 0

Sheet NodeCopy Data (hidden)
A1: Entry Count | B1: 0
A2: Next Available ID | B2: 1

Sheet Dependency Data (hidden)
A1: Entry Count | B1: 9
A2: Next Available ID | B2: 10
A4: ID | B4: 1
A5: IfFactorID | B5: 2
A6: StateID | B6: 5 | C6: 6
A7: ThenD | B7: LbdaB | C7: LbdaB*RR
A9: ID | B9: 2
A10: IfFactorID | B10: 2
A11: StateID | B11: 5 | C11: 6
A12: ThenD | B12: LbdaC | C12: LbdaC*RR
A14: ID | B14: 3
A15: IfFactorID | B15: 2
A16: StateID | B16: 5 | C16: 6
A17: ThenD | B17: LbdaD | C17: LbdaD*RR
A19: ID | B19: 4
A20: IfFactorID | B20: 2
A21: StateID | B21: 5 | C21: 6
A22: ThenD | B22: Cost_A+Cost_Zido | C22: Cost_A+Cost_Comb
A24: ID | B24: 5
A25: IfFactorID | B25: 2
A26: StateID | B26: 5 | C26: 6
A27: ThenD | B27: Cost_B+Cost_Zido | C27: Cost_B +Cost_Comb
A29: ID | B29: 6
A30: IfFactorID | B30: 2
A31: StateID | B31: 5 | C31: 6
A32: ThenD | B32: Cost_C+Cost_Zido | C32: Cost_C+Cost_Comb
A34: ID | B34: 7
A35: IfFactorID | B35: 2
A36: StateID | B36: 5 | C36: 6
A37: ThenD | B37: qA B | C37: qCoA B
A39: ID | B39: 8
A40: IfFactorID | B40: 2
A41: StateID | B41: 5 | C41: 6
A42: ThenD | B42: qB C_ | C42: qCoB C_
A44: ID | B44: 9
A45: IfFactorID | B45: 2
A46: StateID | B46: 5 | C46: 6
A47: ThenD | B47: qA C_ | C47: qCoA C_

Sheet Trigger Data (hidden)
A1: Entry Count | B1: 0
A2: Next Available ID | B2: 1

Sheet _Cohort
A2: Cycle Time = | B2: 1
A3: Start Time = | B3: 0
A4: Time Horizon = | B4: 20
A5: Discount Rate = | B5: =_DiscountRate -> 0
D6: Treatment: | E6: (no name) | F6: Monotherapy | G6: Monotherapy | H6: Monotherapy | I6: Combination Therapy | J6: Combination Therapy | K6: Combination Therapy | L6: Terminal Node
D7: ProgrNaive: | E7: A | F7: A | G7: B | H7: C | I7: A | J7: B | K7: C
D8: Chance/Decision? | E8: 1 | F8: 0 | G8: 0 | H8: 0 | I8: 0 | J8: 0 | K8: 0
D10: Initial Cohort = | E10: 1
D12: Time | E12: Counts
D13: =IF(_R,_tI,IF(_t>_tF,_tNw,D24)) -> 11 | E13: =IF(_R,E10,IF(_tNw>=_tF,E13,E24)) -> 0 | F13: 0 | G13: 0 | H13: 0 | I13: 0.1882087923 | J13: 0.1698845767 | K13: 0.21027212 | L13: 0.431634511 | M13: =(SUMPRODUCT(E8:M8,E13:M13) > 0) -> FALSE
C14: Transition Counts: | D14: / A
D15: Monotherapy / A | E15: =(1-Comb) -> 0
D16: Monotherapy / B | F16: =[1]!xPr(qA B*_dT) -> 0.1827787754
D17: Monotherapy / C | F17: =[1]!xPr(qA C_*_dT) -> 0.06470879331 | G17: =[1]!xPr(qB C_*_dT) -> 0.3343526349
D18: Combination Therapy / A | E18: =Comb -> 1
D19: Combination Therapy / B | I19: =[1]!xPr(qCoA B*_dT) -> 0.09763783935
D20: Combination Therapy / C | I20: =[1]!xPr(qCoA C_*_dT) -> 0.03347754734 | J20: =[1]!xPr(qCoB C_*_dT) -> 0.187110888
D21: Terminal Node | F21: =[1]!xPr(qA D*_dT) -> 0.009756019799 | G21: =[1]!xPr(qB D*_dT) -> 0.01185288292 | H21: =[1]!xPr(qC D*_dT) -> 0.2210878881 | I21: =[1]!xPr(qA D*_dT) -> 0.009756019799 | J21: =[1]!xPr(qB D*_dT) -> 0.01185288292 | K21: =[1]!xPr(qC D*_dT) -> 0.2210878881
D22: Entering Counts | E22: =SUMPRODUCT(_tR,E14:L14) -> 0 | F22: =SUMPRODUCT(_tR,E15:L15) -> 0 | G22: =SUMPRODUCT(_tR,E16:L16) -> 0 | H22: =SUMPRODUCT(_tR,E17:L17) -> 0 | I22: =SUMPRODUCT(_tR,E18:L18) -> 0 | J22: =SUMPRODUCT(_tR,E19:L19) -> 0.01837629983 | K22: =SUMPRODUCT(_tR,E20:L20) -> 0.03808802275 | L22: =SUMPRODUCT(_tR,E21:L21) -> 0.05033840965
D23: Departing Counts | E23: =IF(_CD=1,E13,E13*SUM(E14:E21)) -> 0 | F23: 0 | G23: 0 | H23: 0 | I23: 0.02651323729 | J23: 0.03380087599 | K23: 0.04648861894 | L23: 0
D24: =IF(_CP,D13,D13+_dT) -> 12 | E24: =E13+E22-E23 -> 0 | F24: 0 | G24: 0 | H24: 0 | I24: 0.1616955551 | J24: 0.1544600005 | K24: 0.2018715238 | L24: 0.4819729206
D26: Quality Coefficients (at t): | F26: =1 -> 1 | G26: =1 -> 1 | H26: =1 -> 1 | I26: =1 -> 1 | J26: =1 -> 1 | K26: =1 -> 1
D27: (at t+dt): | F27: =EXP(-_dR*_dT) -> 1 | G27: 1 | H27: 1 | I27: 1 | J27: 1 | K27: 1
C29: Transition QALY Tolls: | D29: Monotherapy / A | E29: =0 -> 0
D30: Combination Therapy / A | E30: =0 -> 0
D31: Monotherapy / B | F31: =0 -> 0
D32: Monotherapy / C | F32: =0 -> 0 | G32: =0 -> 0
D33: Combination Therapy / B | I33: =0 -> 0
D34: Combination Therapy / C | I34: =0 -> 0 | J34: =0 -> 0
D35: Terminal Node | F35: =0 -> 0 | G35: =0 -> 0 | H35: =0 -> 0 | I35: =0 -> 0 | J35: =0 -> 0 | K35: =0 -> 0
D36: Incremental QALY Tolls: | E36: =IF(_t>_tF,0,_tR*SUM(E29:E35)) -> 0 | F36: 0 | G36: 0 | H36: 0 | I36: 0 | J36: 0 | K36: 0
D37: Incremental QALYs: | E37: =IF(_t>_tF,0,IF(_CP,0,_dT/2*(E26*E13+E27*E24))) -> 0 | F37: 0 | G37: 0 | H37: 0 | I37: 0.1749521737 | J37: 0.1621722886 | K37: 0.2060718219
D38: Incremental Total: | E38: =E37-E36 -> 0 | F38: 0 | G38: 0 | H38: 0 | I38: 0.1749521737 | J38: 0.1621722886 | K38: 0.2060718219
D39: Cum Discounted QALYs: | E39: =IF(_R,E38,IF(_t>=_tF,E39,E39+E38*EXP(-_dR*_t))) -> 0 | F39: 0 | G39: 0 | H39: 0 | I39: 5.53169661 | J39: 2.221178217 | K39: 1.903406073
D40: Overall Cum QALYs = | E40: =SUM(E39:K39) -> 9.6562809
D42: Cost Coefficients (at t): | F42: =(Cost_A+Cost_Zido) -> 5034 | G42: =(Cost_B+Cost_Zido) -> 5330 | H42: =(Cost_C+Cost_Zido) -> 11285 | I42: =(Cost_A+Cost_Comb) -> 5034 | J42: =(Cost_B +Cost_Comb) -> 5330 | K42: =(Cost_C+Cost_Comb) -> 11285
D43: (at t+dt): | F43: =(Cost_A+Cost_Zido)*EXP(-_dR*_dT) -> 5034 | G43: =(Cost_B+Cost_Zido)*EXP(-_dR*_dT) -> 5330 | H43: =(Cost_C+Cost_Zido)*EXP(-_dR*_dT) -> 11285 | I43: =(Cost_A+Cost_Comb)*EXP(-_dR*_dT) -> 5034 | J43: =(Cost_B +Cost_Comb)*EXP(-_dR*_dT) -> 5330 | K43: =(Cost_C+Cost_Comb)*EXP(-_dR*_dT) -> 11285
C45: Transition Cost Tolls: | D45: Monotherapy / A | E45: =0 -> 0
D46: Combination Therapy / A | E46: =0 -> 0
D47: Monotherapy / B | F47: =0 -> 0
D48: Monotherapy / C | F48: =0 -> 0 | G48: =0 -> 0
D49: Combination Therapy / B | I49: =0 -> 0
D50: Combination Therapy / C | I50: =0 -> 0 | J50: =0 -> 0
D51: Terminal Node | F51: =0 -> 0 | G51: =0 -> 0 | H51: =0 -> 0 | I51: =0 -> 0 | J51: =0 -> 0 | K51: =0 -> 0
D52: Incremental Cost Tolls: | E52: =IF(_t>_tF,0,_tR*SUM(E45:E51)) -> 0 | F52: 0 | G52: 0 | H52: 0 | I52: 0 | J52: 0 | K52: 0
D53: Incremental Costs: | E53: =IF(_t>_tF,0,IF(_CP,0,_dT/2*(E42*E13+E43*E24))) -> 0 | F53: 0 | G53: 0 | H53: 0 | I53: 880.7092424 | J53: 864.3782982 | K53: 2325.52051
D54: Incremental Total: | E54: =E53+E52 -> 0 | F54: 0 | G54: 0 | H54: 0 | I54: 880.7092424 | J54: 864.3782982 | K54: 2325.52051
D55: Cum Discounted Costs: | E55: =IF(_R,E54,IF(_t>=_tF,E55,E55+E54*EXP(-_dR*_t))) -> 0 | F55: 0 | G55: 0 | H55: 0 | I55: 36076.36252 | J55: 13994.86536 | K55: 22806.89127
D56: Overall Cum Costs = | E56: =SUM(E55:K55) -> 72878.11914

Sheet Treatment
E3: Comb = | F3: 1
N4: QALY | O4: Cost
M5: =Comb -> 1 | N5: =_CumQ -> 9.6562809 | O5: =_CumC -> 72878.11914 | Q5: ICER
L6: Comb | M6: 0 | N6: 8.30019932 | O6: 63668.23328 | Q6: =(O7-O6)/(N7-N6) -> 11905.70513
M7: 1 | N7: 13.90647209 | O7: 130414.8637

Sheet _Lookup (hidden)
A1: Next Available Dive Index | B1: 8
A2: Begin Table | B2: 5
A3: End Table | B3: 13
A5: Lexicographic Node Index | B5: Dive Index
A6: 1 | B6: 1
A7: 4 | B7: 2
A8: 5 | B8: 6
A9: 6 | B9: 7
A10: 7 | B10: 3
A11: 8 | B11: 4
A12: 9 | B12: 5

Sheet ProgrNaive
C6: Counts kij
D7: A | E7: B | F7: C | G7: D | H7: Total
C8: A | D8: 1251 | E8: 350 | F8: 116 | G8: 17 | H8: =SUM(D8:G8) -> 1734
C9: B | E9: 731 | F9: 512 | G9: 15 | H9: =SUM(D9:G9) -> 1258
C10: C | F10: 1312 | G10: 437 | H10: =SUM(D10:G10) -> 1749
C11: k.j | D11: =SUM(D8:D10) -> 1251 | E11: =SUM(E8:E10) -> 1081 | F11: 1940 | G11: 469
C13: Q = | E13: =E8/H8 -> 0.2018454441 | F13: =F8/H8 -> 0.06689734717 | G13: =G8/H8 -> 0.009803921569 | H13: Under monotherapy
D14: 0 | F14: =F9/H9 -> 0.4069952305 | G14: =G9/H9 -> 0.01192368839
D15: 0 | E15: 0 | G15: =G10/H10 -> 0.2498570612
D16: 0 | E16: 0 | F16: 0
M17: Cost_Zido | N17: 2278 | P17: Cost_A | Q17: 2756 | S17: RR | T17: 0.509
C18: QCo = | D18: =RR*D13 -> 0 | E18: 0.102739331 | F18: 0.03405074971 | G18: =G13 -> 0.009803921569 | H18: Under combination therapy | M18: Cost_Lami | N18: =IF(_t<=2,2086,0) -> 0 | P18: Cost_B | Q18: 3052
D19: 0 | E19: 0 | F19: 0.2071605723 | G19: =G14 -> 0.01192368839 | M19: Cost_Comb | N19: =Cost_Zido+Cost_Lami -> 2278 | P19: Cost_C | Q19: 9007
D20: 0 | E20: 0 | F20: 0 | G20: 0.2498570612
N21: =Cost_A + Cost_Comb -> 5034

Sheet Progression
C6: Counts kij
D7: A | E7: B | F7: C | G7: D | H7: Total
C8: A | D8: 1251 | E8: 350 | F8: 116 | G8: 17 | H8: =SUM(D8:G8) -> 1734
C9: B | E9: 731 | F9: 512 | G9: 15 | H9: =SUM(D9:G9) -> 1258
C10: C | F10: 1312 | G10: 437 | H10: =SUM(D10:G10) -> 1749
C11: k.j | D11: =SUM(D8:D10) -> 1251 | E11: =SUM(E8:E10) -> 1081 | F11: 1940 | G11: 469
C13: Q = | D13: -0.32649 | E13: 0.31114 | F13: 0.00239 | G13: 0.01296
D14: 0 | E14: -0.54286 | F14: 0.61478 | G14: -0.07191
D15: 0 | E15: 0 | F15: -0.28749 | G15: 0.28749
D16: 0 | E16: 0 | F16: 0 | G16: 0
C17: Continuous-time rates (See Exer 2_5 HIV-AIDS.xmcd) | M17: =_t -> 11.5
D19: LbdaB | E19: LbdaC | F19: LbdaD
C20: ljhat | D20: =E13 -> 0.31114 | E20: =F14 -> 0.61478 | F20: =G15 -> 0.28749

Sheet Sheet1
